bitfinex/quotes_BTCUSD_20240712
["timestamp","ask_amount","ask_price","bid_price","bid_amount"]
[1720753763558,0.73412072,57373.0,57365.0,0.12894129]
[1720753763559,0.244034,57369.0,57365.0,0.12894129]
[1720753763704,0.244034,57369.0,57363.0,0.060481]
[1720753763705,0.244035,57369.0,57363.0,0.12894129]
[1720753763921,0.122027,57364.0,57363.0,0.12894129]
[1720753764100,0.244061,57363.0,57361.0,0.12894129]
[1720753764297,0.1,57362.0,57356.0,0.12894129]
[1720753764500,0.244069,57361.0,57357.0,0.12894129]
[1720753764803,0.222037,57360.0,57357.0,0.12894129]
[1720753765192,0.244077,57359.0,57355.0,0.12894129]
[1720753765389,0.122047,57355.0,57354.0,0.12894129]
[1720753765626,0.222047,57355.0,57354.0,0.12894129]
[1720753765834,0.1,57355.0,57354.0,0.12894129]
[1720753766252,0.222047,57355.0,57352.0,0.12894129]
[1720753766378,0.366159,57352.0,57351.0,0.12894129]
[1720753766586,0.466159,57352.0,57351.0,0.12894129]
[1720753766987,0.466159,57352.0,57346.0,0.000913]
[1720753766988,0.122063,57347.0,57346.0,0.000913]
[1720753767417,0.24592498,57347.0,57346.0,0.000913]
[1720753767778,0.49005198,57347.0,57346.0,0.000913]
[1720753768182,0.49105198,57347.0,57346.0,0.000913]
[1720753768983,0.50549015,57347.0,57346.0,0.000913]
[1720753769187,0.50549013,57347.0,57346.0,0.000913]
[1720753769461,0.50549013,57347.0,57346.0,0.001913]
[1720753770632,0.99374413,57347.0,57346.0,0.001913]
[1720753771553,0.122083,57338.0,57336.0,0.12894129]
[1720753771762,0.13652315,57337.0,57336.0,0.12894129]
[1720753771937,0.01443815,57337.0,57336.0,0.12894129]
[1720753772112,0.13652315,57337.0,57336.0,0.12894129]
[1720753772591,0.366261,57336.0,57335.0,0.12894129]
[1720753772790,0.366261,57336.0,57334.0,0.060481]
[1720753772791,0.122089,57335.0,57334.0,0.12894129]
[1720753773019,0.222089,57335.0,57334.0,0.12894129]
[1720753773231,0.23712893,57335.0,57334.0,0.12894129]
[1720753773603,0.23712893,57335.0,57331.0,0.28065564]
[1720753773803,0.23712893,57335.0,57327.0,0.19554129]
[1720753773804,0.1221,57330.0,57327.0,0.19554129]
[1720753774100,0.01509797,57329.0,57327.0,0.12894129]
[1720753774306,0.104,57335.0,57324.0,0.0666]
[1720753774536,0.12211,57325.0,57324.0,0.12894129]
[1720753774831,0.12211,57325.0,57322.0,0.061394]
[1720753774832,0.122112,57324.0,57323.0,0.12894129]
[1720753775040,0.222112,57324.0,57323.0,0.12894129]
[1720753775245,0.122115,57323.0,57322.0,0.12985429]
[1720753775404,0.222115,57323.0,57322.0,0.12985429]
[1720753775605,0.1,57323.0,57322.0,0.12985429]
[1720753775812,0.222115,57323.0,57322.0,0.12985429]
[1720753776014,0.222115,57323.0,57322.0,0.000913]
[1720753776436,0.223115,57323.0,57322.0,0.009913]
[1720753776613,0.101,57323.0,57322.0,0.009913]
[1720753776823,0.101,57323.0,57322.0,0.19933529]
[1720753778063,0.102,57323.0,57322.0,0.20333529]
[1720753779545,0.002,57323.0,57322.0,0.20333529]
[1720753782291,0.002,57323.0,57322.0,0.14285429]
[1720753782691,0.002,57323.0,57322.0,0.14733529]
[1720753782932,0.002,57323.0,57322.0,0.14285429]
[1720753783409,0.002,57323.0,57322.0,0.14733529]
[1720753783878,0.002,57323.0,57322.0,0.20333529]
[1720753784090,0.102,57323.0,57322.0,0.20333529]
[1720753784263,0.002,57323.0,57322.0,0.26393529]
[1720753784497,0.002,57323.0,57322.0,0.34383529]
[1720753784697,0.002,57323.0,57322.0,0.40378137]
[1720753784906,0.002,57323.0,57322.0,0.34378137]
[1720753785321,0.002,57323.0,57322.0,0.40378137]
[1720753786527,0.002,57323.0,57322.0,0.77013237]
[1720753786743,0.002,57323.0,57322.0,0.61297432]
[1720753787099,0.002,57323.0,57322.0,0.49085732]
[1720753787528,0.001,57323.0,57322.0,0.48992085]
[1720753787991,0.122088,57336.0,57335.0,0.12894129]
[1720753788207,0.222088,57336.0,57335.0,0.12894129]
[1720753788638,0.222088,57336.0,57335.0,0.18942229]
[1720753788639,0.1,57336.0,57335.0,0.18942229]
[1720753788819,0.01150005,57348.0,57344.0,0.12894129]
[1720753789019,0.244113,57351.0,57348.0,0.12894129]
[1720753789020,0.191985,57349.0,57348.0,0.12894129]
[1720753789224,0.122059,57349.0,57348.0,0.12894129]
[1720753789421,0.122059,57349.0,57348.0,0.12694129]
[1720753789762,0.122057,57350.0,57349.0,0.12694129]
[1720753789960,0.122057,57350.0,57349.0,0.18742229]
[1720753790180,0.122059,57349.0,57348.0,0.12694129]
[1720753790383,0.122061,57348.0,57347.0,0.00306353]
[1720753790809,0.122061,57348.0,57346.0,0.00306353]
[1720753791030,0.122061,57348.0,57345.0,0.13000482]
[1720753791031,0.1,57347.0,57345.0,0.13000482]
[1720753791438,0.1,57347.0,57345.0,0.12694129]
[1720753792238,0.1,57347.0,57343.0,0.203481]
[1720753792239,0.222064,57347.0,57344.0,0.12694129]
[1720753792458,0.222064,57347.0,57345.0,0.00306353]
[1720753792789,0.366198,57346.0,57345.0,0.00306353]
[1720753792918,0.122072,57344.0,57340.0,0.12694129]
[1720753793122,0.588264,57346.0,57338.0,0.12694129]
[1720753793123,0.1,57343.0,57338.0,0.12694129]
[1720753793328,0.004,57342.0,57334.0,0.12694129]
[1720753793534,0.2036,57340.0,57334.0,0.12694129]
[1720753793882,0.122085,57337.0,57334.0,0.12694129]
[1720753794013,0.1,57336.0,57334.0,0.12694129]
[1720753794212,0.1,57336.0,57333.0,0.12694129]
[1720753794416,0.366271,57335.0,57333.0,0.12694129]
[1720753794662,0.222091,57334.0,57333.0,0.12694129]
[1720753795710,0.1,57334.0,57333.0,0.12694129]
[1720753795904,0.1,57335.0,57334.0,0.18742229]
[1720753796106,0.1,57335.0,57334.0,0.12694129]
[1720753796708,0.1,57335.0,57334.0,0.18742229]
[1720753797068,0.1,57336.0,57335.0,0.12694129]
[1720753797267,0.1,57336.0,57328.0,0.12694129]
[1720753797469,0.1,57336.0,57322.0,0.00085908]
[1720753797470,0.122104,57328.0,57327.0,0.26424129]
[1720753797667,0.222104,57328.0,57327.0,0.26424129]
[1720753798580,0.222104,57328.0,57327.0,0.005]
[1720753798797,0.1,57328.0,57327.0,0.13194129]
[1720753799152,0.1,57328.0,57327.0,0.13594129]
[1720753801749,0.1,57328.0,57327.0,0.19642229]
[1720753801995,0.1,57331.0,57330.0,0.18742229]
[1720753802308,0.1,57331.0,57330.0,0.28206452]
[1720753802529,0.0240297,57336.0,57335.0,0.18742229]
[1720753802756,0.01558094,57336.0,57335.0,0.18742229]
[1720753802894,0.01557942,57336.0,57335.0,0.18742229]
[1720753803094,0.1,57337.0,57335.0,0.18742229]
[1720753803295,0.1236594,57338.0,57337.0,0.12694129]
[1720753803479,0.1236594,57338.0,57332.0,0.08511435]
[1720753803480,0.122089,57336.0,57334.0,0.12694129]
[1720753803687,0.11552215,57335.0,57330.0,0.076]
[1720753803906,0.11552215,57335.0,57330.0,0.001]
[1720753803907,0.1217867,57331.0,57330.0,0.001]
[1720753804320,0.1,57331.0,57330.0,0.001]
[1720753804497,0.1,57331.0,57330.0,0.12894129]
[1720753804699,0.1,57331.0,57330.0,0.12794129]
[1720753804922,0.1,57331.0,57330.0,0.18842229]
[1720753805136,0.1,57331.0,57330.0,0.12794129]
[1720753805514,0.1,57331.0,57330.0,0.12894129]
[1720753805711,0.09992521,57331.0,57330.0,0.12894129]
[1720753806018,0.09992521,57331.0,57330.0,0.002]
[1720753806019,0.22202221,57331.0,57330.0,0.002]
[1720753806343,0.46621721,57331.0,57330.0,0.002]
[1720753807125,0.22202221,57331.0,57330.0,0.002]
[1720753807998,0.95860721,57331.0,57330.0,0.002]
[1720753808205,0.122114,57324.0,57322.0,0.19260037]
[1720753808343,0.244223,57325.0,57322.0,0.19260037]
[1720753808344,0.1,57323.0,57322.0,0.06565908]
[1720753808545,0.23779719,57323.0,57322.0,0.06565908]
[1720753808812,0.48202719,57323.0,57322.0,0.00085908]
[1720753809021,0.72625719,57323.0,57322.0,0.00085908]
[1720753809318,0.710575,57323.0,57322.0,0.00085908]
[1720753809527,0.72687477,57323.0,57322.0,0.00085908]
[1720753810149,0.97110477,57323.0,57322.0,0.00085908]
[1720753810546,0.97510477,57323.0,57322.0,0.00085908]
[1720753810936,0.97510477,57323.0,57322.0,0.01185908]
[1720753811292,0.97510477,57323.0,57322.0,0.00085908]
[1720753811699,0.98110477,57323.0,57322.0,0.01285908]
[1720753812216,0.97510477,57323.0,57322.0,0.00085908]
[1720753812420,0.98210477,57323.0,57322.0,0.00285908]
[1720753812621,0.99383959,57323.0,57322.0,0.00185908]
[1720753812984,0.99383959,57323.0,57322.0,0.00285908]
[1720753813184,0.99489713,57323.0,57322.0,0.00285908]
[1720753813398,0.004,57321.0,57317.0,0.009119]
[1720753813552,0.004,57321.0,57311.0,0.08611435]
[1720753813553,0.122138,57312.0,57311.0,0.08611435]
[1720753813731,0.25123013,57312.0,57311.0,0.21305564]
[1720753813951,0.25123013,57312.0,57311.0,0.08611435]
[1720753814741,0.74378213,57312.0,57311.0,0.001]
[1720753814941,0.73978213,57312.0,57311.0,0.001]
[1720753815174,0.98805813,57312.0,57311.0,0.008]
[1720753815374,0.570421,57311.0,57310.0,0.007]
[1720753815582,0.570421,57311.0,57305.0,0.009108]
[1720753815583,0.614732,57308.0,57307.0,0.00700001]
[1720753815779,0.94742413,57308.0,57307.0,0.00700001]
[1720753815979,1.19487624,57308.0,57307.0,0.00700001]
[1720753817181,1.19487624,57308.0,57303.0,1e-08]
[1720753817182,0.859088,57304.0,57303.0,1e-08]
[1720753817384,0.859088,57304.0,57294.0,0.069589]
[1720753817385,0.370492,57300.0,57294.0,0.009108]
[1720753817588,0.366523,57295.0,57294.0,0.009108]
[1720753817808,1.060353,57295.0,57294.0,0.009108]
[1720753818010,0.366568,57288.0,57287.0,0.009097]
[1720753818227,0.60136501,57295.0,57287.0,0.009097]
[1720753818228,0.14837939,57294.0,57293.0,0.18742229]
[1720753818411,0.1,57294.0,57293.0,0.18742229]
[1720753818735,0.1,57294.0,57293.0,0.33272229]
[1720753819437,0.1,57300.0,57299.0,0.17842229]
[1720753819611,0.1,57305.0,57303.0,0.12694129]
[1720753819984,0.12216,57302.0,57299.0,0.12694129]
[1720753820199,0.1,57301.0,57299.0,0.12694129]
[1720753820424,0.122157,57304.0,57303.0,0.12694129]
[1720753820551,0.222157,57304.0,57303.0,0.12694129]
[1720753820766,0.122157,57303.0,57302.0,0.11594129]
[1720753820962,0.222157,57303.0,57302.0,0.11594129]
[1720753821366,0.222157,57303.0,57299.0,0.11594129]
[1720753821567,0.1,57302.0,57299.0,0.11594129]
[1720753821799,0.1,57302.0,57300.0,0.11594129]
[1720753822818,0.125157,57303.0,57302.0,0.16742229]
[1720753822819,0.003,57303.0,57302.0,0.16742229]
[1720753823024,0.003,57303.0,57302.0,0.55547132]
[1720753823238,0.003,57303.0,57302.0,1.13300764]
[1720753823834,0.472,57318.0,57317.0,0.11594129]
[1720753824038,0.12212,57321.0,57317.0,0.11594129]
[1720753824252,0.0234695,57318.0,57316.0,0.11494129]
[1720753824455,0.366376,57318.0,57317.0,0.00306353]
[1720753824669,0.7067426,57318.0,57317.0,0.00306353]
[1720753824871,0.12213,57316.0,57315.0,0.11494129]
[1720753825251,0.122133,57315.0,57313.0,0.11494129]
[1720753825424,0.25451338,57314.0,57313.0,0.11494129]
[1720753826126,0.25500396,57314.0,57313.0,0.11494129]
[1720753826551,0.25500396,57314.0,57313.0,0.11694129]
[1720753826754,0.56773078,57314.0,57313.0,0.002]
[1720753826972,1.28987578,57314.0,57313.0,0.002]
[1720753827172,1.73774378,57314.0,57313.0,0.002]
[1720753827683,2.05227578,57314.0,57313.0,0.002]
[1720753827835,1.79383878,57314.0,57313.0,0.002]
[1720753828043,2.01683878,57314.0,57313.0,0.002]
[1720753828240,2.46110678,57314.0,57313.0,0.002]
[1720753828846,2.46110678,57314.0,57313.0,0.003]
[1720753829213,2.46110678,57314.0,57303.0,0.11494129]
[1720753829214,0.366466,57304.0,57303.0,0.11494129]
[1720753829414,0.122159,57302.0,57301.0,0.00306353]
[1720753829611,0.122161,57301.0,57296.0,0.19814129]
[1720753829870,0.37719096,57302.0,57294.0,0.13659535]
[1720753829871,0.12217,57297.0,57294.0,0.11494129]
[1720753830038,0.122174,57295.0,57294.0,0.11494129]
[1720753830256,0.122174,57295.0,57290.0,0.0795]
[1720753830257,0.244355,57294.0,57290.0,0.0795]
[1720753830458,0.244358,57293.0,57289.0,0.17704129]
[1720753830665,0.1,57292.0,57289.0,0.17704129]
[1720753830909,0.122185,57290.0,57289.0,0.17704129]
[1720753831032,0.222185,57290.0,57289.0,0.17704129]
[1720753831476,0.31334175,57290.0,57289.0,0.11494129]
[1720753831692,0.122189,57288.0,57287.0,0.009097]
[1720753831846,0.1,57288.0,57287.0,0.17551929]
[1720753832060,0.11001812,57288.0,57287.0,0.17551929]
[1720753832446,0.1,57288.0,57287.0,0.17551929]
[1720753833056,0.1,57295.0,57292.0,0.11494129]
[1720753833260,0.03370892,57294.0,57292.0,0.11494129]
[1720753833461,0.01001788,57294.0,57289.0,0.11494129]
[1720753833665,0.0337123,57293.0,57290.0,0.11494129]
[1720753833815,0.1,57293.0,57290.0,0.11494129]
[1720753834174,0.222175,57295.0,57292.0,0.11494129]
[1720753834463,0.03352054,57294.0,57292.0,0.11694129]
[1720753834665,0.222175,57295.0,57294.0,0.11494129]
[1720753834858,0.25569676,57295.0,57292.0,0.11694129]
[1720753835060,0.03352176,57294.0,57292.0,0.11694129]
[1720753835316,0.03352176,57293.0,57292.0,0.11694129]
[1720753835524,0.222175,57295.0,57292.0,0.23162229]
[1720753835525,0.101,57295.0,57292.0,0.23162229]
[1720753835735,0.001,57295.0,57294.0,0.33203664]
[1720753836146,0.02288362,57297.0,57296.0,0.11494129]
[1720753836582,0.122153,57305.0,57300.0,0.11494129]
[1720753836791,0.122153,57305.0,57295.0,0.08511435]
[1720753836792,0.03282075,57304.0,57303.0,0.11494129]
[1720753837359,0.13282075,57304.0,57303.0,0.11494129]
[1720753837990,0.14284044,57304.0,57303.0,0.11494129]
[1720753838525,0.15184044,57304.0,57303.0,0.11494129]
[1720753838933,0.15184044,57304.0,57300.0,0.11494129]
[1720753839157,0.12801969,57304.0,57303.0,0.001]
[1720753839330,0.16091173,57304.0,57303.0,0.001]
[1720753839786,0.15191217,57304.0,57298.0,0.11494129]
[1720753839985,0.03289248,57303.0,57298.0,0.11494129]
[1720753840192,0.04290287,57303.0,57300.0,0.001]
[1720753840414,0.04290287,57303.0,57298.0,0.11494129]
[1720753840415,0.03289248,57302.0,57298.0,0.11494129]
[1720753840827,0.01001037,57301.0,57298.0,0.11494129]
[1720753841027,0.01001037,57301.0,57299.0,0.11494129]
[1720753841028,0.03289248,57300.0,57299.0,0.11494129]
[1720753841436,0.04290309,57300.0,57298.0,0.11494129]
[1720753841648,0.03289248,57299.0,57298.0,0.11494129]
[1720753841856,0.02650601,57299.0,57296.0,0.11494129]
[1720753842059,0.0100102,57299.0,57294.0,0.19544129]
[1720753842230,0.122174,57295.0,57294.0,0.19544129]
[1720753842446,0.1,57295.0,57294.0,0.24292229]
[1720753842598,0.1100102,57295.0,57294.0,0.24292229]
[1720753843003,0.1425953,57295.0,57294.0,0.24292229]
[1720753843320,0.2647693,57295.0,57294.0,0.0805]
[1720753843519,0.2657693,57295.0,57294.0,0.0805]
[1720753843874,0.5101183,57295.0,57294.0,0.0805]
[1720753844021,0.50977417,57295.0,57294.0,0.0805]
[1720753844238,0.51177417,57295.0,57294.0,0.0805]
[1720753844437,0.51157864,57295.0,57294.0,0.0805]
[1720753846628,0.122178,57293.0,57292.0,0.17814129]
[1720753846838,0.2351852,57295.0,57294.0,0.16242229]
[1720753847035,0.25740178,57295.0,57294.0,0.16242229]
[1720753847411,0.13522678,57295.0,57294.0,0.16242229]
[1720753847613,0.15596787,57295.0,57294.0,0.16242229]
[1720753848079,0.05596787,57295.0,57294.0,0.16242229]
[1720753848461,0.05496787,57295.0,57294.0,0.16242229]
[1720753848597,0.05596787,57295.0,57294.0,0.16242229]
[1720753848795,0.05596787,57295.0,57294.0,0.30932229]
[1720753849218,0.02346932,57295.0,57294.0,0.30932229]
[1720753849646,0.02346932,57295.0,57294.0,0.26184129]
[1720753850239,0.05580483,57295.0,57294.0,0.30932229]
[1720753851203,0.05587097,57295.0,57294.0,0.30932229]
[1720753852666,0.15587097,57295.0,57294.0,0.26184129]
[1720753852862,0.15587097,57295.0,57287.0,0.009097]
[1720753852863,0.366568,57288.0,57287.0,0.009097]
[1720753853140,0.49896965,57288.0,57287.0,0.009097]
[1720753853460,0.50896974,57288.0,57287.0,0.009097]
[1720753853833,0.50896974,57288.0,57287.0,0.17151929]
[1720753854480,0.50902929,57288.0,57287.0,0.12403829]
[1720753854890,0.47656809,57288.0,57287.0,0.12603829]
[1720753855108,0.50902423,57288.0,57287.0,0.17351929]
[1720753855298,0.50902423,57288.0,57287.0,0.011097]
[1720753855624,0.82874245,57288.0,57287.0,0.011097]
[1720753855823,0.75340323,57288.0,57287.0,0.011097]
[1720753856491,0.50902423,57288.0,57287.0,0.011097]
[1720753857899,0.47656809,57288.0,57287.0,0.011097]
[1720753858125,0.50890995,57288.0,57287.0,0.011097]
[1720753858564,0.75328895,57288.0,57287.0,0.011097]
[1720753858738,0.86030655,57288.0,57287.0,0.011097]
[1720753858938,0.61592755,57288.0,57287.0,0.12603829]
[1720753859140,0.61592755,57288.0,57287.0,0.011097]
[1720753859720,0.86030655,57288.0,57287.0,0.011097]
[1720753860234,0.75327192,57288.0,57287.0,0.011097]
[1720753860431,0.16482778,57288.0,57287.0,0.17351929]
[1720753860655,0.06482778,57288.0,57287.0,0.31871929]
[1720753861069,0.244334,57299.0,57298.0,0.11494129]
[1720753861070,0.069987,57299.0,57298.0,0.11494129]
[1720753861274,0.069987,57299.0,57296.0,0.0822]
[1720753861275,0.24434,57297.0,57296.0,0.0822]
[1720753861410,0.03231034,57297.0,57292.0,0.17734129]
[1720753861604,0.447027,57301.0,57291.0,0.047481]
[1720753861605,0.122178,57293.0,57291.0,0.11494129]
[1720753861804,0.122178,57293.0,57290.0,0.0822]
[1720753861805,0.122183,57291.0,57290.0,0.0822]
[1720753862053,0.15449334,57291.0,57290.0,0.0822]
[1720753862472,0.25449334,57291.0,57290.0,0.0822]
[1720753862824,0.13231034,57291.0,57290.0,0.0822]
[1720753863257,0.13231034,57291.0,57290.0,0.24462229]
[1720753863461,0.03231034,57291.0,57290.0,0.24462229]
[1720753863665,0.03231034,57291.0,57290.0,0.27623422]
[1720753863879,0.03231034,57291.0,57290.0,0.24462229]
[1720753864273,0.02247913,57299.0,57295.0,0.16242229]
[1720753864274,0.1,57296.0,57295.0,0.16242229]
[1720753864498,0.1,57301.0,57298.0,0.29792229]
[1720753864703,0.192141,57303.0,57300.0,0.11394129]
[1720753864968,0.02945868,57302.0,57298.0,0.25044129]
[1720753865169,0.02945868,57301.0,57298.0,0.1365]
[1720753865395,0.02945868,57300.0,57296.0,0.11394129]
[1720753865527,0.02945868,57300.0,57293.0,0.0759]
[1720753865528,0.02945868,57299.0,57298.0,0.16142229]
[1720753865737,0.02945868,57299.0,57298.0,0.11394129]
[1720753866158,0.02945868,57299.0,57298.0,0.16142229]
[1720753866397,0.02945868,57299.0,57298.0,0.16042229]
[1720753867448,0.02945868,57299.0,57296.0,0.11294129]
[1720753867643,0.1,57302.0,57296.0,0.11294129]
[1720753867644,0.02979073,57298.0,57296.0,0.11294129]
[1720753867882,0.02979073,57297.0,57296.0,0.11294129]
[1720753868044,0.122174,57296.0,57294.0,0.11294129]
[1720753868483,0.25196473,57295.0,57294.0,0.11294129]
[1720753868716,0.25196473,57295.0,57294.0,0.16042229]
[1720753868717,0.14092063,57295.0,57294.0,0.16042229]
[1720753868959,0.14092063,57295.0,57294.0,0.24553664]
[1720753869443,0.04092063,57295.0,57294.0,0.24553664]
[1720753869681,0.14092063,57295.0,57294.0,0.24753664]
[1720753869916,0.14092063,57295.0,57294.0,0.24553664]
[1720753870115,0.14092063,57295.0,57294.0,0.24853664]
[1720753870316,0.14092063,57295.0,57294.0,0.16342229]
[1720753870723,0.04092063,57295.0,57294.0,0.24853664]
[1720753871044,0.04092063,57295.0,57294.0,0.25053664]
[1720753871290,0.03998971,57295.0,57294.0,0.25053664]
[1720753872219,0.03998971,57295.0,57294.0,0.11794129]
[1720753872451,0.03998971,57295.0,57294.0,0.16542229]
[1720753872694,0.03998971,57295.0,57294.0,0.25053664]
[1720753872952,0.03998971,57295.0,57294.0,0.16542229]
[1720753872953,0.06289177,57295.0,57294.0,0.16542229]
[1720753873222,0.18506577,57295.0,57294.0,0.11794129]
[1720753873731,0.28506577,57295.0,57294.0,0.11794129]
[1720753874003,0.28506577,57295.0,57294.0,0.005]
[1720753874234,0.52941477,57295.0,57294.0,0.005]
[1720753874668,0.77284666,57295.0,57294.0,0.005]
[1720753875151,0.77284713,57295.0,57294.0,0.005]
[1720753875406,0.77284713,57295.0,57294.0,0.002]
[1720753876088,0.122178,57293.0,57292.0,0.11294129]
[1720753876298,0.25012117,57293.0,57292.0,0.11294129]
[1720753876503,0.26129076,57293.0,57292.0,0.11294129]
[1720753876716,0.13911276,57293.0,57292.0,0.11294129]
[1720753876927,0.13911276,57293.0,57292.0,0.16042229]
[1720753877323,0.03911276,57293.0,57292.0,0.16042229]
[1720753877669,0.03911276,57293.0,57292.0,0.19927595]
[1720753877892,0.22737995,57300.0,57297.0,0.11294129]
[1720753878116,0.15091088,57299.0,57297.0,0.11294129]
[1720753878322,0.02874488,57298.0,57297.0,0.16042229]
[1720753878574,0.02874488,57298.0,57297.0,0.24352229]
[1720753879217,0.15091288,57298.0,57297.0,0.24352229]
[1720753879883,0.02874488,57298.0,57297.0,0.33377452]
[1720753880026,0.02285201,57300.0,57298.0,0.16042229]
[1720753880225,0.122161,57301.0,57300.0,0.11294129]
[1720753880435,0.24748935,57301.0,57298.0,0.11294129]
[1720753880644,0.12532835,57300.0,57299.0,0.11294129]
[1720753880842,0.1,57300.0,57299.0,0.11094129]
[1720753881439,0.366504,57298.0,57297.0,0.149]
[1720753881673,0.366504,57298.0,57297.0,0.0831]
[1720753882138,0.122178,57293.0,57292.0,0.11094129]
[1720753882362,0.122181,57292.0,57291.0,0.081]
[1720753882576,0.122178,57293.0,57291.0,0.19194129]
[1720753882804,0.244353,57294.0,57291.0,0.081]
[1720753883022,0.366543,57292.0,57291.0,0.081]
[1720753883246,0.466543,57292.0,57291.0,0.081]
[1720753883739,0.244366,57291.0,57289.0,0.11094129]
[1720753883985,0.366549,57291.0,57290.0,0.11094129]
[1720753884187,0.122183,57291.0,57290.0,0.11094129]
[1720753884443,0.222183,57291.0,57290.0,0.11094129]
[1720753885090,0.122189,57288.0,57287.0,0.009097]
[1720753885350,1.027845,57288.0,57287.0,0.009097]
[1720753885603,1.03714963,57288.0,57287.0,1e-08]
[1720753885860,0.72025163,57288.0,57287.0,1e-08]
[1720753886651,0.72025163,57288.0,57287.0,0.00200001]
[1720753887372,0.72025163,57288.0,57287.0,0.00400001]
[1720753888809,0.74202302,57288.0,57287.0,0.00400001]
[1720753891101,0.76370501,57288.0,57287.0,0.00400001]
[1720753892158,0.76322349,57288.0,57287.0,0.00400001]
[1720753892567,0.51884449,57288.0,57287.0,0.00400001]
[1720753892775,0.15227649,57288.0,57287.0,0.19784597]
[1720753892976,0.05227649,57288.0,57287.0,0.3079223]
[1720753893365,0.04297186,57288.0,57287.0,0.3079223]
[1720753894567,0.05221981,57288.0,57287.0,0.3079223]
[1720753895418,0.03092994,57288.0,57287.0,0.3079223]
[1720753895750,0.05152823,57288.0,57287.0,0.3079223]
[1720753895951,0.05154153,57288.0,57287.0,0.3079223]
[1720753896315,0.04229358,57288.0,57287.0,0.3079223]
[1720753896725,0.05154923,57288.0,57287.0,0.3079223]
[1720753897334,0.41811723,57288.0,57287.0,0.14950001]
[1720753897535,0.41811723,57288.0,57283.0,0.1037]
[1720753897536,0.122198,57284.0,57283.0,0.1037]
[1720753897695,0.222198,57284.0,57283.0,0.1037]
[1720753897909,0.25218475,57284.0,57283.0,0.1037]
[1720753898337,0.49658075,57284.0,57283.0,0.1037]
[1720753898507,0.12998675,57284.0,57283.0,0.34723664]
[1720753898941,0.13112242,57284.0,57283.0,0.34723664]
[1720753899352,0.13112242,57284.0,57283.0,0.3885803]
[1720753899708,0.13212242,57284.0,57283.0,0.3885803]
[1720753900043,0.13212242,57284.0,57283.0,0.34723664]
[1720753900909,0.03212242,57284.0,57283.0,0.34723664]
[1720753901112,0.25432042,57284.0,57283.0,0.1037]
[1720753901264,0.49871642,57284.0,57283.0,0.1037]
[1720753901794,0.74311242,57284.0,57283.0,0.1037]
[1720753901996,0.49871642,57284.0,57283.0,0.1037]
[1720753902546,0.49821032,57284.0,57283.0,0.1037]
[1720753902828,0.49821032,57284.0,57283.0,0.025]
[1720753903942,0.49821032,57284.0,57283.0,0.13594129]
[1720753904133,0.49821032,57284.0,57283.0,0.025]
[1720753905118,0.74260632,57284.0,57283.0,0.025]
[1720753905318,0.74260632,57284.0,57283.0,0.01459706]
[1720753905319,0.89155415,57284.0,57283.0,0.01459706]
[1720753905520,0.89155415,57284.0,57282.0,0.001]
[1720753905521,0.439119,57283.0,57282.0,0.001]
[1720753905726,1.21969127,57283.0,57282.0,0.001]
[1720753906071,1.44930914,57283.0,57282.0,0.001]
[1720753906476,1.44986291,57283.0,57282.0,0.001]
[1720753907024,1.69426291,57283.0,57282.0,0.001]
[1720753907230,1.39536191,57283.0,57282.0,0.001]
[1720753907424,1.17677891,57283.0,57282.0,0.001]
[1720753907625,1.10425991,57283.0,57282.0,0.001]
[1720753908030,1.09725991,57283.0,57282.0,0.001]
[1720753908253,0.611022,57281.0,57280.0,0.0015]
[1720753908431,0.48773565,57281.0,57280.0,0.11244129]
[1720753908676,0.25256291,57281.0,57280.0,0.11244129]
[1720753908964,0.13035891,57281.0,57280.0,0.29972229]
[1720753909422,0.25256291,57281.0,57280.0,0.29972229]
[1720753909622,0.15256291,57281.0,57280.0,0.25224129]
[1720753909822,0.03035891,57281.0,57280.0,0.29972229]
[1720753910182,0.03735891,57281.0,57280.0,0.41972229]
[1720753910601,0.03735891,57281.0,57280.0,0.29972229]
[1720753910917,0.02812265,57281.0,57280.0,0.29972229]
[1720753911321,0.0343321,57281.0,57280.0,0.41972229]
[1720753911677,0.02112265,57281.0,57280.0,0.41972229]
[1720753912304,0.02112265,57281.0,57280.0,0.29972229]
[1720753912571,0.02112265,57281.0,57280.0,0.47051231]
[1720753912770,0.02112265,57281.0,57280.0,0.29972229]
[1720753913033,0.02178058,57281.0,57280.0,0.29972229]
[1720753913232,0.123019,57288.0,57285.0,0.11094129]
[1720753913435,0.03193249,57287.0,57285.0,0.11094129]
[1720753913616,0.14490385,57286.0,57285.0,0.15842229]
[1720753913747,0.24490385,57286.0,57285.0,0.15842229]
[1720753913950,0.25412689,57286.0,57285.0,0.11094129]
[1720753914407,0.2444,57283.0,57282.0,0.11094129]
[1720753914623,0.122204,57282.0,57280.0,0.25224129]
[1720753914780,0.13193249,57281.0,57280.0,0.25224129]
[1720753915177,0.25413649,57281.0,57280.0,0.1413]
[1720753915375,0.13193249,57281.0,57280.0,0.25224129]
[1720753915602,0.25413649,57281.0,57280.0,0.1413]
[1720753915784,0.25413649,57281.0,57280.0,0.0806]
[1720753915977,0.25413649,57281.0,57280.0,0.0015]
[1720753915978,0.81547349,57281.0,57280.0,0.0015]
[1720753916201,0.74295449,57281.0,57280.0,0.0015]
[1720753916463,0.74296999,57281.0,57280.0,0.0015]
[1720753918829,0.81548899,57281.0,57280.0,0.0015]
[1720753919228,0.122215,57276.0,57275.0,0.18974129]
[1720753919426,0.25416339,57276.0,57275.0,0.18974129]
[1720753919826,0.25470949,57276.0,57275.0,0.18974129]
[1720753920523,0.11022304,57276.0,57275.0,0.23722229]
[1720753920714,0.13330754,57276.0,57275.0,0.23722229]
[1720753920916,0.03330754,57276.0,57275.0,0.42302229]
[1720753921268,0.0240845,57276.0,57275.0,0.42302229]
[1720753921487,0.002,57276.0,57275.0,0.46632957]
[1720753921688,0.002,57276.0,57275.0,0.4693931]
[1720753922494,0.002,57276.0,57275.0,1.2804781]
[1720753922700,0.00083,57288.0,57287.0,0.22472229]
[1720753922920,0.00083,57288.0,57287.0,0.30552229]
[1720753923120,0.02367315,57288.0,57287.0,0.30552229]
[1720753923458,0.02367315,57288.0,57287.0,0.34807452]
[1720753923999,0.02367315,57288.0,57287.0,0.42552229]
[1720753924209,0.04666829,57288.0,57287.0,0.42552229]
[1720753925443,0.04766829,57288.0,57287.0,0.43152229]